Workbook

Sheet Начало
B1: ОБ ЭТОМ ШАБЛОНЕ
B2: Используйте лист «Бюджет учебного заведения на ме» для отслеживания доходов, расходов и движения денежных средств.
B3: Введите ежемесячные доходы и расходы, чтобы вычислить общие доходы и расходы.
B4: Движение денежных средств вычисляется автоматически, и обновляется диаграмма движения денежных средств.
B5: Перемещайте ползунок, чтобы получить диаграммы доходов, расходов и движения денежных средств за месяц и год.
B6: Примечание:
B7: В столбце A листа содержатся дополнительные инструкции. Их текст намерено скрыт. Чтобы удалить этот текст, выделите столбец A и нажмите клавишу DELETE. Чтобы отобразить текст, выделите столбец A и измените цвет шрифта.

Sheet Бюджет учебного заведения на ме
A1: Создайте на этом листе бюджет студента на месяц. Ячейка справа и ячейка B1 содержат заголовок листа. Полезные инструкции о том, как использовать этот лист, содержатся в ячейках этого столбца. Дальнейшие инструкции представлены в ячейке A4. | B1: Бюджет студента на месяц
A4: Надпись «Доходы» находится в ячейке справа, надпись «Расходы» — в ячейке E4, а надпись «Движение денежных средств» — в ячейке M4. | B4: =chart_calcs!$D$6 -> доход за год: | E4: =chart_calcs!$D$7 -> расход за год: | M4: =chart_calcs!$D$8 -> движение денежных средств за год:
A5: Доходы автоматически вычисляются в ячейке справа, расходы — в ячейке E5, а движение денежных средств — в ячейке M5. | B5: =" "&chart_calcs!$F$6 ->  | E5: =" "&chart_calcs!$F$7 ->  | M5: =" "&chart_calcs!$F$8 -> 1 69 ₽
A6: Кольцевая диаграмма, демонстрирующая сводку по доходам в ячейке справа, сводка по расходам в ячейке E6 и линейчатая диаграмма, демонстрирующая положительное и отрицательное движение денежных средств в ячейке M6, обновляются автоматически. Дальнейшие инструкции представлены в ячейке A17. | B6: В этой ячейке расположена кольцевая диаграмма, демонстрирующая сводку по доходу за выбранный месяц или год. | E6: В этой ячейке расположена кольцевая диаграмма, демонстрирующая сводку по расходам за выбранный месяц или год. | M6: В этой ячейке расположена линейчатая диаграмма, демонстрирующая положительное и отрицательное движение денежных средств за выбранный месяц или год.
B16: В этой ячейке расположен график, демонстрирующий движение денежных средств за выбранный месяц или год.
A17: В ячейке справа расположен график движение денежных средств. Дальнейшие инструкции представлены в ячейке A21.
A21: Перемещайте ползунок справа, чтобы получить месячные или годовые доходы, расходы, движение денежных средств и диаграммы. Дальнейшие инструкции представлены в ячейке A25. | B21: В этой ячейке находится ползунок.
A25: Выберите месяц в ячейке справа. Нажмите клавиши ALT+СТРЕЛКА ВНИЗ, чтобы открыть список, и используйте клавиши СТРЕЛКА ВНИЗ и ВВОД для выбора нужного варианта. | B25: ЯНВ
A26: Выбранный период автоматически обновляется в ячейке P26. | P26: =SelectedPeriod -> 
A27: В этой строке указываются надписи: надпись «Месячные средства после расходов» расположена в ячейке справа, месяцы — в ячейках C27–N27, «Год» — в ячейке O27 и процентное увеличение — в ячейке P27. | B27: Месячные средства после расходов | C27: =FirstMonth ->  | D27: =NextMonth ->  | E27: =NextMonth ->  | F27: =NextMonth ->  | O27: ГОД | P27: % УВЕЛ
A28: Надпись «Движение денежных средств» расположена в ячейке справа. Движение денежных средств за каждый месяц автоматически вычисляется в ячейках C28–N28, годовая сумма — в ячейке O28, а процентное увеличение — в ячейке P28. Спарклайн обновляется автоматически в ячейке Q28. | B28: Движение денежных средств | C28: =C37-C72 -> 169 | D28: 69 | E28: 192 | F28: 199 | G28: 204 | H28: -771 | I28: 124 | J28: 154 | K28: -721 | L28: 109 | M28: 34 | N28: -61 | O28: =SUM(C28:N28) -> -299 | P28: =INDEX($C28:$O28,,SelectedPeriodColumn)/INDEX($C$37:$O$37,,SelectedPeriodColumn) -> 
A29: Надпись «Накопленное движение денежных средств» расположена в ячейке справа. Накопленное движение денежных средств за каждый месяц автоматически вычисляется в ячейках C29–N29, годовая сумма — в ячейке O29, а процентное увеличение — в ячейке P29. Спарклайн обновляется автоматически в ячейке Q29. Дальнейшие инструкции указаны в ячейке A31. | B29: Накопленное движение денежных средств | C29: =SUM($C$28:C$28) -> 169 | D29: =SUM($C$28:D$28) -> 238 | E29: =SUM($C$28:E$28) -> 430 | F29: =SUM($C$28:F$28) -> 629 | G29: =SUM($C$28:G$28) -> 833 | H29: =SUM($C$28:H$28) -> 62 | I29: =SUM($C$28:I$28) -> 186 | J29: =SUM($C$28:J$28) -> 340 | K29: =SUM($C$28:K$28) -> -381 | L29: =SUM($C$28:L$28) -> -272 | M29: =SUM($C$28:M$28) -> -238 | N29: =SUM($C$28:N$28) -> -299
A31: Надпись «Месячный доход» расположена в ячейке справа, месяцы — в ячейках C31–N31, «Год» — в ячейке O31, а надпись «Процентное увеличение» — в ячейке P31. Введите элементы месячных доходов в ячейки B32–B36 и месячные суммы в ячейки C32–N36. Годовой доход автоматически вычисляется в ячейках O32–O36, а процентное увеличение — в ячейках P32–P36. Дальнейшие инструкции указаны в ячейке A37. | B31: МЕСЯЧНЫЙ ДОХОД | C31: =FirstMonth ->  | D31: =NextMonth ->  | O31: ГОД | P31: % УВЕЛ
B32: Полученная финансовая помощь (гранты, стипендии, кредиты) | C32: 0 | D32: 0 | E32: 750 | F32: 750 | G32: 750 | H32: 750 | I32: 750 | J32: 750 | K32: 750 | L32: 750 | M32: 750 | N32: 750 | O32: =SUM(C32:N32) -> 7,500 | P32: =INDEX($C32:$O32,,SelectedPeriodColumn)/INDEX($C$37:$O$37,,SelectedPeriodColumn) -> 
B33: Заработная плата после уплаты налогов | C33: 450 | D33: 450 | E33: 450 | F33: 450 | G33: 450 | H33: 450 | I33: 450 | J33: 450 | K33: 550 | L33: 350 | M33: 350 | N33: 350 | O33: 5,200 | P33: =INDEX($C33:$O33,,SelectedPeriodColumn)/INDEX($C$37:$O$37,,SelectedPeriodColumn) -> 
B34: Финансовая помощь от семьи | C34: 200 | D34: 200 | E34: 1,000 | F34: 350 | G34: 350 | H34: 350 | I34: 350 | J34: 350 | K34: 350 | L34: 350 | M34: 350 | N34: 350 | O34: 4,550 | P34: =INDEX($C34:$O34,,SelectedPeriodColumn)/INDEX($C$37:$O$37,,SelectedPeriodColumn) -> 
B35: Снятие сбережений | C35: 500 | D35: 350 | E35: 150 | F35: 0 | G35: 0 | H35: 0 | I35: 0 | J35: 0 | K35: 0 | L35: 0 | M35: 0 | N35: 0 | O35: 1,000 | P35: =INDEX($C35:$O35,,SelectedPeriodColumn)/INDEX($C$37:$O$37,,SelectedPeriodColumn) -> 
B36: Прочее (алименты на ребенка, социальная помощь, подарки и т. д.) | C36: 75 | D36: 75 | E36: 75 | F36: 75 | G36: 75 | H36: 75 | I36: 75 | J36: 75 | K36: 75 | L36: 75 | M36: 75 | N36: 75 | O36: 900 | P36: =INDEX($C36:$O36,,SelectedPeriodColumn)/INDEX($C$37:$O$37,,SelectedPeriodColumn) -> 
A37: Надпись «Общий доход» находится в ячейке справа. Общий доход за каждый месяц автоматически вычисляется в ячейках C37–N37, годовой доход — в ячейке O37, а процентное увеличение — в ячейке P37. Спарклайн обновляется автоматически в ячейке Q37. Дальнейшие инструкции указаны в ячейке A39. | B37: ОБЩИЙ ДОХОД | C37: =SUM(C32:C36) -> 1,225 | D37: 1,075 | E37: 2,425 | F37: 1,625 | G37: 1,625 | H37: 1,625 | I37: 1,625 | J37: 1,625 | K37: 1,725 | L37: 1,525 | M37: 1,525 | N37: 1,525 | O37: 19,150 | P37: =INDEX($C37:$O37,,SelectedPeriodColumn)/INDEX($C$37:$O$37,,SelectedPeriodColumn) -> 
A39: Надпись «Расходы за месяц» расположена в ячейке справа, месяцы — в ячейках C39–N39, «Год» — в ячейке O39, а надпись «Процентное увеличение» — в ячейке P39. | B39: РАСХОДЫ ЗА МЕСЯЦ | C39: =FirstMonth ->  | D39: =NextMonth ->  | O39: ГОД | P39: % УВЕЛ
A40: Введите или измените элемент расходов в ячейке справа и месячные суммы в ячейках C40–N43. Годовая сумма автоматически вычисляется в ячейках O40–O43, а процентное увеличение — в ячейках P40–P43. Спарклайн обновляется автоматически в ячейке Q40. Дальнейшие инструкции указаны в ячейке A45. | B40: Проживание и питание | C40: =SUM(C41:C43) -> 565 | D40: 565 | E40: 565 | F40: 565 | G40: 565 | H40: 565 | I40: 565 | J40: 565 | K40: 565 | L40: 565 | M40: 565 | N40: 565 | O40: =SUM(C40:N40) -> 6,780 | P40: =INDEX($C40:$O40,,SelectedPeriodColumn)/INDEX($C$72:$O$72,,SelectedPeriodColumn) -> 
C41: 315 | D41: 315 | E41: 315 | F41: 315 | G41: 315 | H41: 315 | I41: 315 | J41: 315 | K41: 315 | L41: 315 | M41: 315 | N41: 315 | O41: =SUM(C41:N41) -> 3,780 | P41: =INDEX($C41:$O41,,SelectedPeriodColumn)/INDEX($C$72:$O$72,,SelectedPeriodColumn) -> 
C42: 200 | D42: 200 | E42: 200 | F42: 200 | G42: 200 | H42: 200 | I42: 200 | J42: 200 | K42: 200 | L42: 200 | M42: 200 | N42: 200 | O42: =SUM(C42:N42) -> 2,400 | P42: =INDEX($C42:$O42,,SelectedPeriodColumn)/INDEX($C$72:$O$72,,SelectedPeriodColumn) -> 
C43: 50 | D43: 50 | E43: 50 | F43: 50 | G43: 50 | H43: 50 | I43: 50 | J43: 50 | K43: 50 | L43: 50 | M43: 50 | N43: 50 | O43: =SUM(C43:N43) -> 600 | P43: =INDEX($C43:$O43,,SelectedPeriodColumn)/INDEX($C$72:$O$72,,SelectedPeriodColumn) -> 
A45: Введите или измените элемент расходов в ячейке справа и месячные суммы в ячейках C45–N47. Годовая сумма автоматически вычисляется в ячейках O45–O47, а процентное увеличение — в ячейках P45–P47. Спарклайн обновляется автоматически в ячейке Q45. Дальнейшие инструкции указаны в ячейке A49. | B45: Плата за обучение и сборы | C45: =SUM(C46:C47) -> 0 | D45: 0 | E45: 750 | F45: 0 | G45: 0 | H45: 650 | I45: 0 | J45: 0 | K45: 650 | L45: 0 | M45: 0 | N45: 0 | O45: =SUM(C45:N45) -> 2,050 | P45: =INDEX($C45:$O45,,SelectedPeriodColumn)/INDEX($C$72:$O$72,,SelectedPeriodColumn) -> 
C46: 0 | D46: 0 | E46: 500 | F46: 0 | G46: 0 | H46: 500 | I46: 0 | J46: 0 | K46: 500 | L46: 0 | M46: 0 | N46: 0 | O46: =SUM(C46:N46) -> 1,500 | P46: =INDEX($C46:$O46,,SelectedPeriodColumn)/INDEX($C$72:$O$72,,SelectedPeriodColumn) -> 
C47: 0 | D47: 0 | E47: 250 | F47: 0 | G47: 0 | H47: 150 | I47: 0 | J47: 0 | K47: 150 | L47: 0 | M47: 0 | N47: 0 | O47: =SUM(C47:N47) -> 550 | P47: =INDEX($C47:$O47,,SelectedPeriodColumn)/INDEX($C$72:$O$72,,SelectedPeriodColumn) -> 
A49: Введите или измените элемент расходов в ячейке справа и месячные суммы в ячейках C49–N51. Годовая сумма автоматически вычисляется в ячейках O49–O51, а процентное увеличение — в ячейках P49–P51. Спарклайн обновляется автоматически в ячейке Q49. Дальнейшие инструкции указаны в ячейке A53. | B49: Книги и материалы | C49: =SUM(C50:C51) -> 0 | D49: 0 | E49: 325 | F49: 20 | G49: 20 | H49: 325 | I49: 10 | J49: 10 | K49: 400 | L49: 15 | M49: 15 | N49: 15 | O49: =SUM(C49:N49) -> 1,155 | P49: =INDEX($C49:$O49,,SelectedPeriodColumn)/INDEX($C$72:$O$72,,SelectedPeriodColumn) -> 
C50: 0 | D50: 0 | E50: 225 | F50: 0 | G50: 0 | H50: 275 | I50: 0 | J50: 0 | K50: 325 | L50: 0 | M50: 0 | N50: 0 | O50: =SUM(C50:N50) -> 825 | P50: =INDEX($C50:$O50,,SelectedPeriodColumn)/INDEX($C$72:$O$72,,SelectedPeriodColumn) -> 
C51: 0 | D51: 0 | E51: 100 | F51: 20 | G51: 20 | H51: 50 | I51: 10 | J51: 10 | K51: 75 | L51: 15 | M51: 15 | N51: 15 | O51: =SUM(C51:N51) -> 330 | P51: =INDEX($C51:$O51,,SelectedPeriodColumn)/INDEX($C$72:$O$72,,SelectedPeriodColumn) -> 
A53: Введите или измените элемент расходов в ячейке справа и месячные суммы в ячейках C53–N57. Годовая сумма автоматически вычисляется в ячейках O53–O57, а процентное увеличение — в ячейках P53–P57. Спарклайн обновляется автоматически в ячейке Q53. Дальнейшие инструкции указаны в ячейке A59. | B53: Транспорт | C53: =SUM(C54:C57) -> 224 | D53: 174 | E53: 174 | F53: 219 | G53: 174 | H53: 174 | I53: 274 | J53: 219 | K53: 174 | L53: 174 | M53: 224 | N53: 269 | O53: =SUM(C53:N53) -> 2,473 | P53: =INDEX($C53:$O53,,SelectedPeriodColumn)/INDEX($C$72:$O$72,,SelectedPeriodColumn) -> 
C54: 30 | D54: 30 | E54: 30 | F54: 75 | G54: 30 | H54: 30 | I54: 30 | J54: 75 | K54: 30 | L54: 30 | M54: 30 | N54: 75 | O54: =SUM(C54:N54) -> 495 | P54: =INDEX($C54:$O54,,SelectedPeriodColumn)/INDEX($C$72:$O$72,,SelectedPeriodColumn) -> 
C55: 129 | D55: 129 | E55: 129 | F55: 129 | G55: 129 | H55: 129 | I55: 129 | J55: 129 | K55: 129 | L55: 129 | M55: 129 | N55: 129 | O55: =SUM(C55:N55) -> 1,548 | P55: =INDEX($C55:$O55,,SelectedPeriodColumn)/INDEX($C$72:$O$72,,SelectedPeriodColumn) -> 
C56: 15 | D56: 15 | E56: 15 | F56: 15 | G56: 15 | H56: 15 | I56: 15 | J56: 15 | K56: 15 | L56: 15 | M56: 15 | N56: 15 | O56: =SUM(C56:N56) -> 180 | P56: =INDEX($C56:$O56,,SelectedPeriodColumn)/INDEX($C$72:$O$72,,SelectedPeriodColumn) -> 
C57: 50 | D57: 0 | E57: 0 | F57: 0 | G57: 0 | H57: 0 | I57: 100 | J57: 0 | K57: 0 | L57: 0 | M57: 50 | N57: 50 | O57: =SUM(C57:N57) -> 250 | P57: =INDEX($C57:$O57,,SelectedPeriodColumn)/INDEX($C$72:$O$72,,SelectedPeriodColumn) -> 
A59: Введите или измените элемент расходов в ячейке справа и месячные суммы в ячейках C59–N65. Годовая сумма автоматически вычисляется в ячейках O59–O65, а процентное увеличение — в ячейках P59–P65. Спарклайн обновляется автоматически в ячейке Q59. Дальнейшие инструкции указаны в ячейке A67. | B59: Необязательные | C59: =SUM(C60:C65) -> 69 | D59: 69 | E59: 169 | F59: 369 | G59: 419 | H59: 444 | I59: 419 | J59: 419 | K59: 394 | L59: 394 | M59: 419 | N59: 469 | O59: =SUM(C59:N59) -> 4,053 | P59: =INDEX($C59:$O59,,SelectedPeriodColumn)/INDEX($C$72:$O$72,,SelectedPeriodColumn) -> 
C60: 0 | D60: 0 | E60: 0 | F60: 50 | G60: 100 | H60: 100 | I60: 100 | J60: 100 | K60: 75 | L60: 75 | M60: 100 | N60: 100 | O60: 800 | P60: =INDEX($C60:$O60,,SelectedPeriodColumn)/INDEX($C$72:$O$72,,SelectedPeriodColumn) -> 
C61: 69 | D61: 69 | E61: 69 | F61: 69 | G61: 69 | H61: 69 | I61: 69 | J61: 69 | K61: 69 | L61: 69 | M61: 69 | N61: 69 | O61: 828 | P61: =INDEX($C61:$O61,,SelectedPeriodColumn)/INDEX($C$72:$O$72,,SelectedPeriodColumn) -> 
C62: 0 | D62: 0 | E62: 0 | F62: 0 | G62: 0 | H62: 25 | I62: 0 | J62: 0 | K62: 0 | L62: 0 | M62: 0 | N62: 50 | O62: 75 | P62: =INDEX($C62:$O62,,SelectedPeriodColumn)/INDEX($C$72:$O$72,,SelectedPeriodColumn) -> 
C63: 0 | D63: 0 | E63: 100 | F63: 100 | G63: 100 | H63: 100 | I63: 100 | J63: 100 | K63: 100 | L63: 100 | M63: 100 | N63: 100 | O63: 1,000 | P63: =INDEX($C63:$O63,,SelectedPeriodColumn)/INDEX($C$72:$O$72,,SelectedPeriodColumn) -> 
C64: 0 | D64: 0 | E64: 0 | F64: 50 | G64: 50 | H64: 50 | I64: 50 | J64: 50 | K64: 50 | L64: 50 | M64: 50 | N64: 50 | O64: 450 | P64: =INDEX($C64:$O64,,SelectedPeriodColumn)/INDEX($C$72:$O$72,,SelectedPeriodColumn) -> 
C65: 0 | D65: 0 | E65: 0 | F65: 100 | G65: 100 | H65: 100 | I65: 100 | J65: 100 | K65: 100 | L65: 100 | M65: 100 | N65: 100 | O65: 900 | P65: =INDEX($C65:$O65,,SelectedPeriodColumn)/INDEX($C$72:$O$72,,SelectedPeriodColumn) -> 
A67: Введите или измените элемент расходов в ячейке справа и месячные суммы в ячейках C67–N70. Годовая сумма автоматически вычисляется в ячейках O67–O70, а процентное увеличение — в ячейках P67–P70. Спарклайн обновляется автоматически в ячейке Q67. Дальнейшие инструкции указаны в ячейке A72. | B67: Прочие расходы | C67: =SUM(C68:C70) -> 198 | D67: =SUM(D68:D70) -> 198 | E67: 250 | F67: 253 | G67: 243 | H67: 238 | I67: 233 | J67: 258 | K67: 263 | L67: 268 | M67: 268 | N67: 268 | O67: =SUM(C67:N67) -> 2,938 | P67: =INDEX($C67:$O67,,SelectedPeriodColumn)/INDEX($C$72:$O$72,,SelectedPeriodColumn) -> 
C68: 123 | D68: 123 | E68: 123 | F68: 123 | G68: 123 | H68: 123 | I68: 123 | J68: 123 | K68: 123 | L68: 123 | M68: 123 | N68: 123 | O68: =SUM(C68:N68) -> 1,476 | P68: =INDEX($C68:$O68,,SelectedPeriodColumn)/INDEX($C$72:$O$72,,SelectedPeriodColumn) -> 
C69: 0 | D69: 0 | E69: 52 | F69: 55 | G69: 45 | H69: 40 | I69: 35 | J69: 60 | K69: 65 | L69: 70 | M69: 70 | N69: 70 | O69: =SUM(C69:N69) -> 562 | P69: =INDEX($C69:$O69,,SelectedPeriodColumn)/INDEX($C$72:$O$72,,SelectedPeriodColumn) -> 
C70: 75 | D70: 75 | E70: 75 | F70: 75 | G70: 75 | H70: 75 | I70: 75 | J70: 75 | K70: 75 | L70: 75 | M70: 75 | N70: 75 | O70: =SUM(C70:N70) -> 900 | P70: =INDEX($C70:$O70,,SelectedPeriodColumn)/INDEX($C$72:$O$72,,SelectedPeriodColumn) -> 
A72: Надпись «Общие расходы» находится в ячейке справа. Общие расходы за каждый месяц автоматически вычисляются в ячейках C72–N72, расходы за год — в ячейке O72, а процентное увеличение — в ячейке P72. Спарклайн обновляется автоматически в ячейке Q72. | B72: ОБЩИЕ РАСХОДЫ | C72: =SUM(C40,C45,C49,C53,C59,C67) -> 1,056 | D72: 1,006 | E72: 2,233 | F72: 1,426 | G72: 1,421 | H72: 2,396 | I72: 1,501 | J72: 1,471 | K72: 2,446 | L72: 1,416 | M72: 1,491 | N72: 1,586 | O72: =SUM(C72:N72) -> 19,449 | P72: =INDEX($C72:$O72,,SelectedPeriodColumn)/INDEX($C$72:$O$72,,SelectedPeriodColumn) -> 

Sheet chart_calcs (hidden)
A1: ***Этот лист должен оставаться СКРЫТЫМ***
D3: =IFERROR(LOWER(TEXT(VALUE(SelectedPeriod&" 1"),"ММММ")),"год") -> год
D5: Динамические заголовки диаграмм
D6: =" доход за "& D3 &": " -> доход за год: | F6: =TEXT(INDEX('Бюджет учебного заведения на ме'!$C$37:$O$37,,SelectedPeriodColumn),"# ## ₽") -> 
D7: =" расход за "& D3 &": " -> расход за год: | F7: =TEXT(INDEX('Бюджет учебного заведения на ме'!$C$72:$O$72,,SelectedPeriodColumn),"# ## ₽") -> 
D8: =" движение денежных средств за "& D3 &": " -> движение денежных средств за год: | E8: =INDEX('Бюджет учебного заведения на ме'!C28:O28,ScrollBarValue) -> 169 | F8: =TEXT(E8,"# ## ₽") -> 1 69 ₽
D12: =LOWER('Бюджет учебного заведения на ме'!C27) ->  | E12: =LOWER('Бюджет учебного заведения на ме'!D27) ->  | F12: =LOWER('Бюджет учебного заведения на ме'!E27) ->  | G12: =LOWER('Бюджет учебного заведения на ме'!F27) ->  | H12: =LOWER('Бюджет учебного заведения на ме'!G27) ->  | I12: =LOWER('Бюджет учебного заведения на ме'!H27) ->  | J12: =LOWER('Бюджет учебного заведения на ме'!I27) ->  | K12: =LOWER('Бюджет учебного заведения на ме'!J27) ->  | L12: =LOWER('Бюджет учебного заведения на ме'!K27) ->  | M12: =LOWER('Бюджет учебного заведения на ме'!L27) ->  | N12: =LOWER('Бюджет учебного заведения на ме'!M27) ->  | O12: =LOWER('Бюджет учебного заведения на ме'!N27) ->  | P12: =LOWER('Бюджет учебного заведения на ме'!O27) -> год
C13: Значение полосы прокрутки: | D13: 1
C14: Диаграмма движения денежных средств: | D14: =IF(SelectedPeriod='Бюджет учебного заведения на ме'!C$31,IF('Бюджет учебного заведения на ме'!$C$28:$O$28>=0,'Бюджет учебного заведения на ме'!$C$28:$O$28,NA()),NA()) ->  | E14: =IF(SelectedPeriod='Бюджет учебного заведения на ме'!D$31,IF('Бюджет учебного заведения на ме'!$C$28:$O$28>=0,'Бюджет учебного заведения на ме'!$C$28:$O$28,NA()),NA()) ->  | F14: =IF(SelectedPeriod='Бюджет учебного заведения на ме'!E$31,IF('Бюджет учебного заведения на ме'!$C$28:$O$28>=0,'Бюджет учебного заведения на ме'!$C$28:$O$28,NA()),NA()) ->  | G14: =IF(SelectedPeriod='Бюджет учебного заведения на ме'!F$31,IF('Бюджет учебного заведения на ме'!$C$28:$O$28>=0,'Бюджет учебного заведения на ме'!$C$28:$O$28,NA()),NA()) ->  | H14: =IF(SelectedPeriod='Бюджет учебного заведения на ме'!G$31,IF('Бюджет учебного заведения на ме'!$C$28:$O$28>=0,'Бюджет учебного заведения на ме'!$C$28:$O$28,NA()),NA()) ->  | I14: =IF(SelectedPeriod='Бюджет учебного заведения на ме'!H$31,IF('Бюджет учебного заведения на ме'!$C$28:$O$28>=0,'Бюджет учебного заведения на ме'!$C$28:$O$28,NA()),NA()) ->  | J14: =IF(SelectedPeriod='Бюджет учебного заведения на ме'!I$31,IF('Бюджет учебного заведения на ме'!$C$28:$O$28>=0,'Бюджет учебного заведения на ме'!$C$28:$O$28,NA()),NA()) ->  | K14: =IF(SelectedPeriod='Бюджет учебного заведения на ме'!J$31,IF('Бюджет учебного заведения на ме'!$C$28:$O$28>=0,'Бюджет учебного заведения на ме'!$C$28:$O$28,NA()),NA()) ->  | L14: =IF(SelectedPeriod='Бюджет учебного заведения на ме'!K$31,IF('Бюджет учебного заведения на ме'!$C$28:$O$28>=0,'Бюджет учебного заведения на ме'!$C$28:$O$28,NA()),NA()) ->  | M14: =IF(SelectedPeriod='Бюджет учебного заведения на ме'!L$31,IF('Бюджет учебного заведения на ме'!$C$28:$O$28>=0,'Бюджет учебного заведения на ме'!$C$28:$O$28,NA()),NA()) ->  | N14: =IF(SelectedPeriod='Бюджет учебного заведения на ме'!M$31,IF('Бюджет учебного заведения на ме'!$C$28:$O$28>=0,'Бюджет учебного заведения на ме'!$C$28:$O$28,NA()),NA()) ->  | O14: =IF(SelectedPeriod='Бюджет учебного заведения на ме'!N$31,IF('Бюджет учебного заведения на ме'!$C$28:$O$28>=0,'Бюджет учебного заведения на ме'!$C$28:$O$28,NA()),NA()) ->  | P14: =IF(SelectedPeriod='Бюджет учебного заведения на ме'!O$31,IF('Бюджет учебного заведения на ме'!$C$28:$O$28>=0,'Бюджет учебного заведения на ме'!$C$28:$O$28,NA()),NA()) -> 
C15: Накопленное: | D15: =IF(SelectedPeriod='Бюджет учебного заведения на ме'!C$31,IF('Бюджет учебного заведения на ме'!$C$28:$O$28<0,'Бюджет учебного заведения на ме'!$C$28:$O$28,NA()),NA()) ->  | E15: =IF(SelectedPeriod='Бюджет учебного заведения на ме'!D$31,IF('Бюджет учебного заведения на ме'!$C$28:$O$28<0,'Бюджет учебного заведения на ме'!$C$28:$O$28,NA()),NA()) ->  | F15: =IF(SelectedPeriod='Бюджет учебного заведения на ме'!E$31,IF('Бюджет учебного заведения на ме'!$C$28:$O$28<0,'Бюджет учебного заведения на ме'!$C$28:$O$28,NA()),NA()) ->  | G15: =IF(SelectedPeriod='Бюджет учебного заведения на ме'!F$31,IF('Бюджет учебного заведения на ме'!$C$28:$O$28<0,'Бюджет учебного заведения на ме'!$C$28:$O$28,NA()),NA()) ->  | H15: =IF(SelectedPeriod='Бюджет учебного заведения на ме'!G$31,IF('Бюджет учебного заведения на ме'!$C$28:$O$28<0,'Бюджет учебного заведения на ме'!$C$28:$O$28,NA()),NA()) ->  | I15: =IF(SelectedPeriod='Бюджет учебного заведения на ме'!H$31,IF('Бюджет учебного заведения на ме'!$C$28:$O$28<0,'Бюджет учебного заведения на ме'!$C$28:$O$28,NA()),NA()) ->  | J15: =IF(SelectedPeriod='Бюджет учебного заведения на ме'!I$31,IF('Бюджет учебного заведения на ме'!$C$28:$O$28<0,'Бюджет учебного заведения на ме'!$C$28:$O$28,NA()),NA()) ->  | K15: =IF(SelectedPeriod='Бюджет учебного заведения на ме'!J$31,IF('Бюджет учебного заведения на ме'!$C$28:$O$28<0,'Бюджет учебного заведения на ме'!$C$28:$O$28,NA()),NA()) ->  | L15: =IF(SelectedPeriod='Бюджет учебного заведения на ме'!K$31,IF('Бюджет учебного заведения на ме'!$C$28:$O$28<0,'Бюджет учебного заведения на ме'!$C$28:$O$28,NA()),NA()) ->  | M15: =IF(SelectedPeriod='Бюджет учебного заведения на ме'!L$31,IF('Бюджет учебного заведения на ме'!$C$28:$O$28<0,'Бюджет учебного заведения на ме'!$C$28:$O$28,NA()),NA()) ->  | N15: =IF(SelectedPeriod='Бюджет учебного заведения на ме'!M$31,IF('Бюджет учебного заведения на ме'!$C$28:$O$28<0,'Бюджет учебного заведения на ме'!$C$28:$O$28,NA()),NA()) ->  | O15: =IF(SelectedPeriod='Бюджет учебного заведения на ме'!N$31,IF('Бюджет учебного заведения на ме'!$C$28:$O$28<0,'Бюджет учебного заведения на ме'!$C$28:$O$28,NA()),NA()) ->  | P15: =IF(SelectedPeriod='Бюджет учебного заведения на ме'!O$31,IF('Бюджет учебного заведения на ме'!$C$28:$O$28<0,'Бюджет учебного заведения на ме'!$C$28:$O$28,NA()),NA()) -> 
C18: ДАННЫЕ ДИАГРАММЫ ДОХОДОВ
C19: Полученная финансовая помощь (гранты, стипендии, кредиты) | D19: ='Бюджет учебного заведения на ме'!P32 -> 
C20: Заработная плата после уплаты налогов | D20: ='Бюджет учебного заведения на ме'!P33 -> 
C21: Финансовая помощь от семьи | D21: ='Бюджет учебного заведения на ме'!P34 -> 
C22: Снятие сбережений | D22: ='Бюджет учебного заведения на ме'!P35 -> 
C23: Прочее (алименты на ребенка, социальная помощь, подарки и т. д.) | D23: ='Бюджет учебного заведения на ме'!P36 -> 
